bitfinex/quotes_BTCUSD_20250119
["timestamp","ask_amount","ask_price","bid_price","bid_amount"]
[1737309641687,0.0825285,105090.0,105080.0,0.35911268]
[1737309642385,0.0825285,105090.0,105080.0,0.34811079]
[1737309643564,0.0825285,105090.0,105080.0,0.3488282]
[1737309643769,0.0825285,105090.0,105080.0,0.43337963]
[1737309648281,0.0825285,105090.0,105080.0,0.46194185]
[1737309648662,0.0825285,105090.0,105080.0,0.43337963]
[1737309648875,0.0825285,105090.0,105080.0,0.55948937]
[1737309649146,0.0825285,105090.0,105080.0,0.49677622]
[1737309649351,0.0825285,105090.0,105080.0,0.55948937]
[1737309650148,0.0825285,105090.0,105080.0,0.8713289]
[1737309653809,0.0825285,105090.0,105080.0,0.43266222]
[1737309654258,0.0825285,105090.0,105080.0,0.44456323]
[1737309656421,0.1311285,105090.0,105080.0,0.88351488]
[1737309657200,0.1311285,105090.0,105080.0,0.8842337]
[1737309657390,0.1311285,105090.0,105080.0,0.44528205]
[1737309658405,0.1311285,105090.0,105080.0,0.36073062]
[1737309659272,0.2311285,105090.0,105080.0,0.25550423]
[1737309659515,0.2311285,105090.0,105080.0,0.40550423]
[1737309659737,0.3762845,105090.0,105080.0,0.1555446]
[1737309661139,0.2811285,105090.0,105080.0,0.1555446]
[1737309661384,0.3762845,105090.0,105080.0,0.14364359]
[1737309661659,0.3811285,105090.0,105080.0,0.14364359]
[1737309661914,0.3811285,105090.0,105080.0,0.30559755]
[1737309664272,0.2311285,105090.0,105080.0,0.30559755]
[1737309664479,0.3811285,105090.0,105080.0,0.30559755]
[1737309667048,0.3811285,105090.0,105080.0,0.2428844]
[1737309667243,0.3811285,105090.0,105080.0,0.30559755]
[1737309667893,0.2311285,105090.0,105080.0,0.30559755]
[1737309668070,0.3811285,105090.0,105080.0,0.30559755]
[1737309668276,0.3811285,105090.0,105080.0,0.2428844]
[1737309669930,0.2811285,105090.0,105080.0,0.30559755]
[1737309670110,0.2811285,105090.0,105080.0,0.2428844]
[1737309671521,0.1311285,105090.0,105080.0,0.2428844]
[1737309671699,0.2811285,105090.0,105080.0,0.2428844]
[1737309672353,0.1311285,105090.0,105080.0,0.2428844]
[1737309672549,0.2811285,105090.0,105080.0,0.2428844]
[1737309674033,0.1311285,105090.0,105080.0,0.2428844]
[1737309675895,0.1311285,105090.0,105080.0,0.30559755]
[1737309676100,0.1311285,105090.0,105080.0,0.45559755]
[1737309676298,0.1311285,105090.0,105080.0,0.47859755]
[1737309677388,0.1311285,105090.0,105080.0,0.47931637]
[1737309678674,0.1311285,105090.0,105080.0,0.5638678]
[1737309681184,0.0825285,105090.0,105080.0,0.5638678]
[1737309681401,0.0004285,105090.0,105080.0,0.5638678]
[1737309681947,0.0004285,105090.0,105080.0,1.00317846]
[1737309682595,0.0004285,105090.0,105080.0,1.00245964]
[1737309683233,0.0004285,105090.0,105080.0,1.29990197]
[1737309683640,0.0004285,105090.0,105080.0,1.31910863]
[1737309687080,0.0004285,105090.0,105080.0,1.3385687]
[1737309688331,0.1276285,105090.0,105080.0,1.3385687]
[1737309688501,0.1276285,105090.0,105080.0,1.33929724]
[1737309689114,0.1276285,105090.0,105080.0,1.21169164]
[1737309690083,0.1276285,105090.0,105080.0,1.21764216]
[1737309690707,0.0807285,105090.0,105080.0,1.21764216]
[1737309691531,0.0807285,105090.0,105080.0,1.21691362]
[1737309692013,0.07582642,105090.0,105080.0,1.21691362]
[1737309692212,0.07582642,105090.0,105080.0,1.34451922]
[1737309695770,0.07524606,105090.0,105080.0,1.34451922]
[1737309699963,0.07524606,105090.0,105080.0,1.21689899]
[1737309700924,0.37284606,105090.0,105080.0,0.94251911]
[1737309701331,0.37327396,105090.0,105080.0,1.09251911]
[1737309702258,0.37327396,105090.0,105080.0,0.39883492]
[1737309702501,0.37327396,105090.0,105080.0,0.24883492]
[1737309704263,0.37327396,105090.0,105080.0,0.28992153]
[1737309714242,0.37327396,105090.0,105080.0,0.24883492]
[1737309714442,0.37327396,105090.0,105080.0,0.28992153]
[1737309714695,0.37327396,105090.0,105080.0,0.24883492]
[1737309715322,0.37327396,105090.0,105080.0,0.28992153]
[1737309716231,0.37327396,105090.0,105080.0,0.24883492]
[1737309716438,0.37327396,105090.0,105080.0,0.28992153]
[1737309718096,0.27327396,105090.0,105080.0,0.33100814]
[1737309718345,0.12327396,105090.0,105080.0,0.33100814]
[1737309718536,0.12327396,105090.0,105080.0,0.48100814]
[1737309719825,0.12327396,105090.0,105080.0,1.1746149]
[1737309720619,0.12327396,105090.0,105080.0,1.38684666]
[1737309722019,0.12327396,105090.0,105080.0,1.1746149]
[1737309722264,0.12327396,105090.0,105080.0,1.13352829]
[1737309723486,0.12327396,105090.0,105080.0,1.1746149]
[1737309723819,0.12327396,105090.0,105080.0,1.38684666]
[1737309727514,0.12327396,105090.0,105080.0,1.30223513]
[1737309727892,0.12327396,105090.0,105080.0,1.22006191]
[1737309728094,0.12327396,105090.0,105080.0,1.30223513]
[1737309734672,0.12327396,105090.0,105080.0,1.38687832]
[1737309735807,0.12327396,105090.0,105080.0,1.30223513]
[1737309737301,0.12327396,105090.0,105080.0,1.3275223]
[1737309738454,0.12327396,105090.0,105080.0,1.20069515]
[1737309741512,0.12327396,105090.0,105080.0,1.17540798]
[1737309742797,0.12327396,105090.0,105080.0,1.17536498]
[1737309747024,0.12327396,105090.0,105080.0,1.30233391]
[1737309748159,0.12327396,105090.0,105080.0,1.00560298]
[1737309752911,0.12327396,105090.0,105080.0,1.00541976]
[1737309754760,0.12327396,105090.0,105080.0,1.17472854]
[1737309757146,0.12327396,105090.0,105080.0,1.00541976]
[1737309758359,0.12327396,105090.0,105080.0,1.04786612]
[1737309759570,0.12327396,105090.0,105080.0,0.9656929]
[1737309759774,0.12327396,105090.0,105080.0,1.04786612]
[1737309761784,0.12327396,105090.0,105080.0,1.2597085]
[1737309762835,0.12327396,105090.0,105080.0,1.00503038]
[1737309764108,0.12327396,105090.0,105080.0,1.04786612]
[1737309769883,0.17227445,105090.0,105080.0,1.04786612]
[1737309783694,0.17227445,105090.0,105080.0,0.9656929]
[1737309783695,0.27227445,105090.0,105080.0,0.9656929]
[1737309784108,0.27227445,105090.0,105080.0,1.00677951]
[1737309784323,0.42227445,105090.0,105080.0,0.8156929]
[1737309784548,0.27227445,105090.0,105080.0,0.8156929]
[1737309784766,0.27227445,105090.0,105080.0,0.85677951]
[1737309784976,0.27227445,105090.0,105080.0,0.8156929]
[1737309785181,0.27227445,105090.0,105080.0,0.71645209]
[1737309785417,0.27227445,105090.0,105080.0,0.7575387]
[1737309785853,0.27227445,105090.0,105080.0,0.71492723]
[1737309786742,0.27227445,105090.0,105080.0,0.81416804]
[1737309786989,0.42227445,105090.0,105080.0,0.52452197]
[1737309787640,0.27227445,105090.0,105080.0,0.52452197]
[1737309788231,0.27227445,105090.0,105080.0,0.43969531]
[1737309789085,0.27227445,105090.0,105080.0,0.52452197]
[1737309790152,0.27227445,105090.0,105080.0,0.43969531]
[1737309790569,0.17227445,105090.0,105080.0,0.29936789]
[1737309790734,0.27227445,105090.0,105080.0,0.29936789]
[1737309790920,0.27227445,105090.0,105080.0,0.43969531]
[1737309791458,0.42227445,105090.0,105080.0,0.43969531]
[1737309793272,0.42227445,105090.0,105080.0,0.52452197]
[1737309793421,0.42227445,105090.0,105080.0,0.48343536]
[1737309793798,0.32227445,105090.0,105080.0,0.38419455]
[1737309794027,0.32227445,105090.0,105080.0,0.42528116]
[1737309794228,0.32227445,105090.0,105080.0,0.38419455]
[1737309794441,0.32227445,105090.0,105080.0,0.3404545]
[1737309796470,0.32177445,105090.0,105080.0,0.3404545]
[1737309798026,0.32157522,105090.0,105080.0,0.29936789]
[1737309799093,0.32157522,105090.0,105080.0,0.3404545]
[1737309800174,0.32157522,105090.0,105080.0,0.29936789]
[1737309801863,0.32157522,105090.0,105080.0,0.29341737]
[1737309803038,0.32157522,105090.0,105080.0,0.33450398]
[1737309803993,0.32157522,105090.0,105080.0,0.34045544]
[1737309805262,0.42157522,105090.0,105080.0,0.43969625]
[1737309805466,0.42157522,105090.0,105080.0,0.48055444]
[1737309806214,0.42157522,105090.0,105080.0,0.43946783]
[1737309807502,0.42157522,105090.0,105080.0,0.52429449]
[1737309810631,0.42157522,105090.0,105080.0,0.43946783]
[1737309812001,0.42157522,105090.0,105080.0,0.52429449]
[1737309813086,0.42157522,105090.0,105080.0,0.43946783]
[1737309816196,0.42157522,105090.0,105080.0,0.52429449]
[1737309819436,0.27157522,105090.0,105080.0,0.52429449]
[1737309820534,0.27157522,105090.0,105080.0,0.43946783]
[1737309821580,0.27157522,105090.0,105080.0,0.65153448]
[1737309824021,0.27157522,105090.0,105080.0,0.96433023]
[1737309825327,0.27157522,105090.0,105080.0,1.13398355]
[1737309827192,0.42157522,105090.0,105080.0,1.13398355]
[1737309827593,0.27157522,105090.0,105080.0,1.13398355]
[1737309828895,0.27157522,105090.0,105080.0,1.17507016]
[1737309829303,0.32157522,105090.0,105080.0,1.17507016]
[1737309829507,0.42157522,105090.0,105080.0,1.38713681]
[1737309830771,0.42157522,105090.0,105080.0,1.17507016]
[1737309834953,0.37257473,105090.0,105080.0,1.17507016]
[1737309835338,0.37257473,105090.0,105080.0,1.13398355]
[1737309839693,0.12257473,105090.0,105080.0,1.17507016]
[1737309839901,0.27257473,105090.0,105080.0,1.17507016]
[1737309840817,0.07497473,105090.0,105080.0,1.17507016]
[1737309841023,9e-07,105090.0,105080.0,1.24144394]
[1737309842438,9e-07,105090.0,105080.0,1.11440209]
[1737309842639,9e-07,105090.0,105080.0,1.07331548]
[1737309844806,0.1394246,105100.0,105090.0,0.245156]
[1737309844953,0.13947441,105100.0,105090.0,0.38548342]
[1737309846248,0.13947441,105100.0,105090.0,1.20628804]
[1737309846903,0.13947441,105100.0,105090.0,1.2122395]
[1737309847129,0.13947441,105100.0,105090.0,1.29690264]
[1737309847698,0.13947441,105100.0,105090.0,1.33392264]
[1737309848055,0.13947441,105100.0,105090.0,1.2492595]
[1737309848632,0.13947441,105100.0,105090.0,1.29034611]
[1737309851109,0.13947441,105100.0,105090.0,1.31563328]
[1737309851847,0.13947441,105100.0,105090.0,1.18863106]
[1737309852214,0.13947441,105100.0,105090.0,1.10645784]
[1737309852421,0.13947441,105100.0,105090.0,1.18863106]
[1737309854321,0.13947441,105100.0,105090.0,1.31564234]
[1737309854701,0.13947441,105100.0,105090.0,1.29035517]
[1737309855092,0.13947441,105100.0,105090.0,1.30118792]
[1737309856620,0.13947441,105100.0,105090.0,1.31977266]
[1737309858319,0.13947441,105100.0,105090.0,1.19281023]
[1737309858478,0.13947441,105100.0,105090.0,1.2180974]
[1737309860024,0.13947441,105100.0,105090.0,1.42976776]
[1737309861278,0.13947441,105100.0,105090.0,1.2180974]
[1737309861686,0.13947441,105100.0,105090.0,1.21214594]
[1737309862132,0.13947441,105100.0,105090.0,1.21809567]
[1737309862394,0.13947441,105100.0,105090.0,1.42976603]
[1737309863235,0.13947441,105100.0,105090.0,1.43066504]
[1737309865930,0.13947441,105100.0,105090.0,1.34595711]
[1737309867980,0.13947441,105100.0,105090.0,1.21894583]
[1737309870007,0.13947441,105100.0,105090.0,1.34603146]
[1737309871314,0.13947441,105100.0,105090.0,1.32074429]
[1737309871515,0.13947441,105100.0,105090.0,1.27965768]
[1737309872424,0.13947441,105100.0,105090.0,0.97074552]
[1737309872642,0.18056102,105100.0,105090.0,0.81475677]
[1737309872836,0.47494883,105100.0,105090.0,0.73665677]
[1737309873071,0.52058723,105100.0,105090.0,0.60855677]
[1737309873277,0.44358723,105100.0,105090.0,0.48045677]
[1737309873556,0.34088723,105100.0,105090.0,0.09625677]
[1737309873761,0.345156,105090.0,105080.0,0.25557671]
[1737309873976,0.44957003,105090.0,105080.0,0.00089859]
[1737309874181,0.30421444,105090.0,105080.0,0.00089859]
[1737309874384,0.36236864,105090.0,105080.0,0.00089859]
[1737309874608,0.26312783,105090.0,105080.0,0.00089859]
[1737309874816,0.49530105,105090.0,105080.0,0.00089859]
[1737309875034,0.195174,105070.0,105060.0,0.21199806]
[1737309875250,0.40788297,105060.0,105050.0,0.0008988]
[1737309875527,0.50712378,105060.0,105050.0,0.0008988]
[1737309875727,0.50712378,105060.0,105050.0,0.0960908]
[1737309875728,0.34884916,105060.0,105050.0,0.0960908]
[1737309875901,0.00442535,105060.0,105050.0,0.15879077]
[1737309876123,0.25,105080.0,105050.0,0.26117877]
[1737309876324,0.63473881,105080.0,105060.0,0.475893]
[1737309876553,0.34445661,105080.0,105070.0,0.095174]
[1737309876758,0.44445661,105080.0,105060.0,0.190354]
[1737309876911,0.63478761,105080.0,105070.0,0.04758]
[1737309877132,0.69748758,105080.0,105070.0,0.04758]
[1737309877665,0.63478761,105080.0,105070.0,0.04758]
[1737309877887,0.99592133,105080.0,105070.0,0.04758]
[1737309879136,0.91061226,105080.0,105070.0,0.04758]
[1737309880460,0.78271208,105080.0,105070.0,0.04758]
[1737309881770,0.78271208,105080.0,105060.0,0.095182]
[1737309881771,0.1,105070.0,105060.0,0.095182]
[1737309881975,0.1,105070.0,105060.0,0.285548]
[1737309882173,0.72001211,105080.0,105060.0,0.475914]
[1737309883171,0.91034411,105080.0,105060.0,0.475914]
[1737309883621,0.095174,105070.0,105060.0,0.285548]
[1737309883821,0.87787808,105080.0,105060.0,0.285548]
[1737309883822,0.88782558,105080.0,105060.0,0.285548]
[1737309884157,0.63479361,105080.0,105060.0,0.523484]
[1737309884369,0.5395498,105080.0,105070.0,0.095174]
[1737309884583,0.5395498,105080.0,105070.0,0.245174]
[1737309884779,0.6395498,105080.0,105070.0,0.292754]
[1737309884940,0.5395498,105080.0,105070.0,0.292754]
[1737309886542,0.6395498,105080.0,105070.0,0.292754]
[1737309886736,0.5395498,105080.0,105070.0,0.292754]
[1737309886933,0.5395498,105080.0,105070.0,0.29365301]
[1737309887159,0.6395498,105080.0,105070.0,0.29365301]
[1737309887364,0.5395498,105080.0,105070.0,0.29365301]
[1737309887926,0.7895498,105080.0,105070.0,0.29365301]
[1737309888170,0.7895498,105080.0,105070.0,0.33885301]
[1737309888444,0.6395498,105080.0,105070.0,0.33885301]
[1737309888648,0.1000498,105080.0,105070.0,0.33885301]
[1737309890981,0.1000498,105080.0,105070.0,0.34961527]
[1737309896891,4.98e-05,105080.0,105070.0,0.14365301]
[1737309898599,0.0004779,105080.0,105070.0,0.14365301]
[1737309899150,0.25758368,105080.0,105070.0,0.14365301]
[1737309899364,0.25758368,105080.0,105070.0,0.04847901]
[1737309899575,0.19488371,105080.0,105070.0,0.14365301]
[1737309900607,0.19488371,105080.0,105070.0,0.04847901]
[1737309901684,0.40758368,105080.0,105070.0,0.04847901]
[1737309902733,0.50758368,105080.0,105070.0,0.04847901]
[1737309903569,0.50758368,105080.0,105070.0,0.00089901]
[1737309904663,0.31501392,105080.0,105070.0,0.00089901]
[1737309904869,0.46501392,105080.0,105070.0,0.00089901]
[1737309905507,0.46501392,105080.0,105070.0,0.04847901]
[1737309905919,0.43058368,105080.0,105070.0,0.04847901]
[1737309906572,0.9405463,105080.0,105070.0,0.04847901]
[1737309907862,0.64306811,105080.0,105070.0,0.04847901]
[1737309908093,0.245183,105060.0,105050.0,0.0008988]
[1737309908301,0.40712378,105060.0,105050.0,0.0008988]
[1737309909359,0.46982375,105060.0,105050.0,0.0008988]
[1737309909565,0.40712378,105060.0,105050.0,0.0008988]
[1737309909765,0.34282375,105060.0,105050.0,0.0008988]
[1737309910184,0.28012378,105060.0,105050.0,0.0008988]
[1737309910337,0.28012378,105060.0,105050.0,0.0484788]
[1737309910541,0.66292501,105060.0,105050.0,0.0484788]
[1737309911132,0.73196676,105060.0,105050.0,0.0484788]
[1737309911782,0.79466673,105060.0,105050.0,0.0484788]
[1737309911936,0.72562498,105060.0,105050.0,0.0377788]
[1737309912148,0.85322539,105060.0,105050.0,0.0377788]
[1737309913115,0.79052542,105060.0,105050.0,0.0377788]
[1737309913297,0.8095179,105060.0,105050.0,0.0377788]
[1737309913713,0.87221787,105060.0,105050.0,0.0377788]
[1737309913932,0.97145868,105060.0,105050.0,0.0377788]
[1737309914345,0.82021845,105060.0,105050.0,0.0377788]
[1737309914756,0.90531801,105060.0,105050.0,0.0377788]
[1737309916023,0.73518413,105060.0,105050.0,0.0377788]
[1737309916844,1.43518413,105060.0,105050.0,0.0377788]
[1737309917359,1.38397082,105060.0,105050.0,0.0377788]
[1737309917487,1.28099079,105060.0,105050.0,0.0377788]
[1737309917692,0.245201,105040.0,105030.0,0.00089859]
[1737309918025,0.34444181,105040.0,105030.0,0.09610859]
[1737309918395,0.19444181,105040.0,105030.0,0.09610859]
[1737309919009,0.19444181,105040.0,105030.0,0.0966069]
[1737309919602,0.64251423,105040.0,105030.0,0.0966069]
[1737309919805,0.29807242,105040.0,105030.0,0.2271069]
[1737309920317,0.29807242,105040.0,105030.0,0.2746869]
[1737309921463,0.533217,105050.0,105040.0,0.095201]
[1737309921676,0.533217,105050.0,105040.0,0.224181]
[1737309922355,0.383217,105050.0,105040.0,0.224181]
[1737309922556,0.15,105050.0,105040.0,0.224181]
[1737309922976,0.3633181,105060.0,105050.0,0.095192]
[1737309923113,0.46987891,105060.0,105050.0,0.095192]
[1737309923342,0.56506191,105060.0,105050.0,0.142772]
[1737309924157,0.43731659,105060.0,105050.0,0.142772]
[1737309924369,0.43731659,105060.0,105050.0,0.04758]
[1737309925004,0.43731659,105060.0,105050.0,0.142772]
[1737309925439,0.43731659,105060.0,105050.0,0.04758]
[1737309926051,0.28731659,105060.0,105050.0,0.04758]
[1737309929160,0.58538901,105060.0,105050.0,0.04758]
[1737309929902,0.73538901,105060.0,105050.0,0.04758]
[1737309930109,0.41506191,105060.0,105050.0,0.04758]
[1737309930505,0.56506191,105060.0,105050.0,0.04758]
[1737309931753,0.56506191,105060.0,105050.0,0.142772]
[1737309932003,0.56506191,105060.0,105050.0,0.16858]
[1737309932617,0.43731659,105060.0,105050.0,0.16858]
[1737309933148,0.42999659,105060.0,105050.0,0.16858]
[1737309933388,0.43731659,105060.0,105050.0,0.16858]
[1737309934007,0.18807578,105060.0,105050.0,0.263772]
[1737309934585,0.18807578,105060.0,105050.0,0.26467122]
[1737309935795,0.18807578,105060.0,105050.0,0.16947922]
[1737309937531,0.4861482,105060.0,105050.0,0.16947922]
[1737309938138,0.4861082,105060.0,105050.0,0.16947922]
[1737309939846,0.86095786,105060.0,105050.0,0.16947922]
[1737309939992,1.01095786,105060.0,105050.0,0.16947922]
[1737309940818,0.92581328,105060.0,105050.0,0.16947922]
[1737309941021,1.02581328,105060.0,105050.0,0.12377922]
[1737309941667,1.02581328,105060.0,105050.0,0.04847922]
[1737309942138,0.62025527,105060.0,105050.0,0.04847922]
[1737309943377,0.93532978,105060.0,105050.0,0.04847922]
[1737309944299,0.62025527,105060.0,105050.0,0.04847922]
[1737309944663,0.245192,105050.0,105040.0,0.11707964]
[1737309946661,0.62961671,105050.0,105040.0,0.16465964]
[1737309950222,0.79155749,105050.0,105040.0,0.16465964]
[1737309950375,0.89155749,105050.0,105040.0,0.16465964]
[1737309951530,0.50713278,105050.0,105040.0,0.16465964]
[1737309952545,0.76255607,105050.0,105040.0,0.16465964]
[1737309953754,0.5998561,105050.0,105040.0,0.16465964]
[1737309954118,0.50789529,105050.0,105040.0,0.25986064]
[1737309954307,0.25542329,105050.0,105040.0,0.25986064]
[1737309955272,0.25542329,105050.0,105040.0,0.24391664]
[1737309955481,0.52941477,105050.0,105040.0,0.24391664]
[1737309957006,0.70042814,105050.0,105040.0,0.24391664]
[1737309957149,0.62232814,105050.0,105040.0,0.55585742]
[1737309957354,0.23802814,105050.0,105040.0,0.55585742]
[1737309957553,0.09618642,105050.0,105040.0,0.64155739]
[1737309957755,0.22477351,105060.0,105050.0,0.276492]
[1737309957958,0.22477351,105060.0,105050.0,0.54871275]
[1737309958398,0.22477351,105060.0,105050.0,0.57491275]
[1737309958597,0.22477351,105060.0,105050.0,0.51221278]
[1737309958986,0.22477351,105060.0,105050.0,0.51929983]
[1737309959189,0.15,105070.0,105050.0,0.42410783]
[1737309959434,0.15,105070.0,105060.0,0.25807549]
[1737309959665,0.1004281,105080.0,105070.0,0.245174]
[1737309959869,0.1004281,105080.0,105070.0,0.40711478]
[1737309960284,0.1004281,105080.0,105070.0,0.45469478]
[1737309961050,0.1004281,105080.0,105070.0,0.39199481]
[1737309961253,0.1004281,105080.0,105070.0,0.39908186]
[1737309962539,0.2504281,105080.0,105070.0,0.39908186]
[1737309962718,0.1004281,105080.0,105070.0,0.39908186]
[1737309963154,0.1004281,105080.0,105070.0,0.39199481]
[1737309963335,0.1004281,105080.0,105070.0,0.45469478]
[1737309964153,0.1004281,105080.0,105070.0,0.292754]
[1737309964297,0.0004281,105080.0,105070.0,0.292754]
[1737309965470,0.0955931,105080.0,105070.0,0.292754]
[1737309966711,0.0808281,105080.0,105070.0,0.292754]
[1737309967052,0.0808281,105080.0,105070.0,0.142754]
[1737309979076,0.1759931,105080.0,105070.0,0.04758]
[1737309979327,0.48553388,105080.0,105070.0,0.04758]
[1737309979774,0.32283391,105080.0,105070.0,0.04758]
[1737309979975,0.1284281,105080.0,105070.0,0.142754]
[1737309980183,0.1004281,105080.0,105070.0,0.35545397]
[1737309980386,0.1004281,105080.0,105070.0,0.45469478]
[1737309982848,1e-07,105080.0,105070.0,0.59719475]
[1737309983134,1e-07,105080.0,105070.0,0.64511298]
[1737309983526,1e-07,105080.0,105070.0,0.58241301]
[1737309985095,1e-07,105080.0,105070.0,0.55749478]
[1737309986061,1e-07,105080.0,105070.0,0.58241301]
[1737309987332,1e-07,105080.0,105070.0,0.53449478]
[1737309988818,1e-07,105080.0,105070.0,0.55345507]
[1737309991637,1e-07,105080.0,105070.0,0.55493507]
[1737309993133,1e-07,105080.0,105070.0,0.57793507]
[1737309996615,1e-07,105080.0,105070.0,0.32513507]
[1737309997358,1e-07,105080.0,105070.0,0.47513507]
[1737309998410,1e-07,105080.0,105070.0,0.4124351]
[1737309998601,1e-07,105080.0,105070.0,0.47513507]
[1737309998843,1e-07,105080.0,105070.0,0.45617478]
[1737309999002,1e-07,105080.0,105070.0,0.30617478]
[1737309999180,0.1500001,105080.0,105070.0,0.30617478]
[1737309999865,0.1500001,105080.0,105070.0,0.45617478]
[1737310005278,0.1500001,105080.0,105070.0,0.45707379]
[1737310007716,0.1500001,105080.0,105070.0,0.39437382]
[1737310007866,0.1500001,105080.0,105070.0,0.45707379]
[1737310008610,0.2302001,105080.0,105070.0,0.45707379]
[1737310010184,0.3302001,105080.0,105070.0,0.29513301]
[1737310010571,0.2292001,105080.0,105070.0,0.29513301]
[1737310011426,0.2243651,105080.0,105070.0,0.14513301]
[1737310011898,0.1292001,105080.0,105070.0,0.14513301]
[1737310012237,0.2292001,105080.0,105070.0,0.14513301]
[1737310022586,0.2243651,105080.0,105070.0,0.14513301]
[1737310023034,0.2243651,105080.0,105070.0,0.04995901]
[1737310023442,0.38630588,105080.0,105070.0,0.04995901]
[1737310023958,0.47360591,105080.0,105070.0,0.04995901]
[1737310025001,0.68722609,105080.0,105070.0,0.04995901]
[1737310025823,0.78722609,105080.0,105070.0,0.04995901]
[1737310026746,0.84992606,105080.0,105070.0,0.04995901]
[1737310028926,0.78722609,105080.0,105070.0,0.04995901]
[1737310029194,0.78722609,105080.0,105070.0,0.04991101]
[1737310030071,0.72175395,105080.0,105070.0,0.04991101]
[1737310031605,0.63630588,105080.0,105070.0,0.04991101]
[1737310031812,0.57360591,105080.0,105070.0,0.04991101]
[1737310032225,0.63630588,105080.0,105070.0,0.04991101]
[1737310034820,0.57360591,105080.0,105070.0,0.04991101]
[1737310035402,0.63630588,105080.0,105070.0,0.04991101]
[1737310036410,0.53630588,105080.0,105070.0,0.04991101]
[1737310036624,0.62175395,105080.0,105070.0,0.04991101]
[1737310037906,0.59992606,105080.0,105070.0,0.04991101]
[1737310039784,0.69992606,105080.0,105070.0,0.04991101]
[1737310040023,0.59992606,105080.0,105070.0,0.04991101]
[1737310040407,0.77042578,105080.0,105070.0,0.04991101]
[1737310040818,0.78999321,105080.0,105070.0,0.04991101]
[1737310041196,0.88999321,105080.0,105070.0,0.04991101]
[1737310041537,0.78999321,105080.0,105070.0,0.04991101]
[1737310045037,0.74885951,105080.0,105070.0,0.04991101]
[1737310045214,0.78999321,105080.0,105070.0,0.04991101]
[1737310046820,0.88999321,105080.0,105070.0,0.04991101]
[1737310047353,0.88999321,105080.0,105070.0,0.14508501]
[1737310047354,0.82568546,105080.0,105070.0,0.14508501]
[1737310047608,0.82568546,105080.0,105070.0,0.18621871]
[1737310047609,0.59724465,105080.0,105070.0,0.18621871]
[1737310048021,0.59724465,105080.0,105070.0,0.14508501]
[1737310048747,1e-07,105080.0,105070.0,0.14508501]
[1737310052315,0.1749651,105080.0,105070.0,0.14508501]
[1737310055866,0.17371313,105080.0,105070.0,0.14508501]
[1737310056062,0.17371313,105080.0,105070.0,0.04991101]
[1737310056410,0.21961313,105080.0,105070.0,0.04991101]
[1737310057163,0.21961313,105080.0,105070.0,0.14508501]
[1737310057551,0.21961313,105080.0,105070.0,0.04991101]
[1737310058028,0.21961313,105080.0,105070.0,0.14508501]
[1737310058750,0.41885394,105080.0,105070.0,0.04991101]
[1737310058954,0.53150018,105080.0,105070.0,0.04991101]
[1737310059161,0.6753688,105080.0,105070.0,0.04991101]
[1737310059363,0.53150018,105080.0,105070.0,0.04991101]
[1737310060952,0.76512455,105080.0,105070.0,0.04991101]
[1737310062001,0.86512455,105080.0,105070.0,0.04991101]
[1737310062223,0.53197859,105080.0,105070.0,0.04991101]
[1737310062428,0.34481278,105080.0,105070.0,0.14508501]
[1737310062600,0.69578206,105080.0,105070.0,0.14508501]
[1737310063256,0.22685313,105080.0,105070.0,0.14508501]
[1737310063602,0.22728123,105080.0,105070.0,0.14508501]
[1737310063846,0.44100966,105080.0,105070.0,0.14508501]
[1737310064050,0.59100966,105080.0,105070.0,0.14508501]
[1737310064258,0.59100966,105080.0,105070.0,0.04991101]
[1737310065226,0.76199241,105080.0,105070.0,0.04991101]
[1737310065452,0.86123322,105080.0,105070.0,0.04991101]
[1737310065800,0.71123322,105080.0,105070.0,0.04991101]
[1737310066004,0.86123322,105080.0,105070.0,0.04991101]
[1737310067339,0.92387946,105080.0,105070.0,0.04991101]
[1737310067651,1.05211653,105080.0,105070.0,0.04991101]
[1737310067865,1.15211653,105080.0,105070.0,0.04991101]
[1737310069772,1.02387947,105080.0,105070.0,0.04991101]
[1737310070852,0.85289672,105080.0,105070.0,0.04991101]
[1737310073334,0.9394846,105080.0,105070.0,0.04991101]
[1737310073573,0.54917879,105080.0,105070.0,0.14508501]
[1737310073779,0.47063066,105080.0,105070.0,0.14508501]
[1737310074968,0.08595326,105080.0,105070.0,0.14508501]
[1737310078325,0.0004281,105080.0,105070.0,0.14508501]
[1737310083391,0.08595326,105080.0,105070.0,0.14508501]
[1737310084369,0.42570531,105080.0,105070.0,0.04991101]
[1737310084569,0.72450531,105080.0,105070.0,0.04991101]
[1737310085549,0.62450531,105080.0,105070.0,0.04991101]
[1737310086053,0.92375892,105080.0,105070.0,0.04991101]
[1737310087050,0.79545427,105080.0,105070.0,0.04991101]
[1737310088221,0.80558228,105080.0,105070.0,0.04991101]
[1737310088721,0.65558228,105080.0,105070.0,0.04991101]
[1737310090877,0.75482309,105080.0,105070.0,0.04991101]
[1737310091080,0.80558228,105080.0,105070.0,0.04991101]
[1737310092662,0.82858228,105080.0,105070.0,0.04991101]
[1737310093743,1.11711567,105080.0,105070.0,0.04991101]
[1737310095201,1.23115671,105080.0,105070.0,0.04991101]
[1737310095537,1.33039752,105080.0,105070.0,0.04991101]
[1737310096140,0.390274,105070.0,105060.0,0.00089901]
[1737310096382,0.61480729,105070.0,105060.0,0.00089901]
[1737310097472,0.87120215,105070.0,105060.0,0.00089901]
[1737310097643,0.095192,105050.0,105040.0,0.00089922]
[1737310097867,0.60701425,105050.0,105040.0,0.00089922]
[1737310098068,0.55941905,105050.0,105040.0,0.00089922]
[1737310098699,0.81581391,105050.0,105040.0,0.00341922]
[1737310101236,0.91581391,105050.0,105040.0,0.00341922]
[1737310101436,0.81581391,105050.0,105040.0,0.00341922]
[1737310101642,0.89281391,105050.0,105040.0,0.00341922]
[1737310101883,0.64281391,105050.0,105040.0,0.00341922]
[1737310102089,0.82292767,105050.0,105040.0,0.00341922]
[1737310102289,0.83016767,105050.0,105040.0,0.00341922]
[1737310102499,0.55082767,105050.0,105040.0,0.09862022]
[1737310102624,0.45806767,105050.0,105040.0,0.00341922]
[1737310102833,0.41489124,105050.0,105040.0,0.09862022]
[1737310103027,0.21321843,105050.0,105040.0,0.09862022]
[1737310103433,0.31321843,105050.0,105040.0,0.09862022]
[1737310103638,0.21321843,105050.0,105040.0,0.09862022]
[1737310104316,0.00724,105060.0,105050.0,0.095192]
[1737310104620,0.00724,105060.0,105050.0,0.097712]
[1737310104806,0.20166381,105060.0,105050.0,0.00252]
[1737310108571,0.26431005,105060.0,105050.0,0.00252]
[1737310108775,0.26431005,105060.0,105050.0,0.00341901]
[1737310109509,0.26431005,105060.0,105050.0,0.09861101]
[1737310110079,0.20166381,105060.0,105050.0,0.09861101]
[1737310113992,0.26431005,105060.0,105050.0,0.00341901]
[1737310114497,0.26431005,105060.0,105050.0,0.09861101]
[1737310115787,0.20166381,105060.0,105050.0,0.09861101]
[1737310116002,0.00724,105060.0,105050.0,0.09861101]
[1737310116428,0.22088653,105070.0,105060.0,0.095183]
[1737310116599,0.32012734,105070.0,105060.0,0.095183]